Cogmind - Beta 16.1 @@@ ROGUE MODE // 2026.02.23 @ 16:43:25 Player: Zish Result: Destroyed by G-34 Mercenary with Small Laser Performance ------------- Evolutions (0) 0 Regions Visited (1) 200 Robots Destroyed (20) 100 Value Destroyed (228) 228 Prototype IDs (0) 0 Alien Tech Used (0) 0 Bonus (0) 0 TOTAL SCORE: 528 Bonus ------- None Cogmind --------- Core Integrity 0/250 Matter 287/300 Energy 125/125 System Corruption 0% Temperature Cool (48) Movement Treading (480) Ox4 Location -10/Materials Parts ------- > --- POWER (1) -------- Light Ion Engine > --- PROPULSION (2) --- Light Treads > --- UTILITY (2) ------ Huge Storage Unit > --- WEAPON (2) ------- Small Laser Assault Rifle > --- INVENTORY (25) --- Light Treads Small Storage Unit Grenade Launcher Datajack Mining Claw Peak State ------------ > --- POWER ------------ Light Ion Engine > --- PROPULSION ------- Light Treads Light Treads > --- UTILITY ---------- Small Storage Unit Huge Storage Unit > --- WEAPON ----------- EM Pulse Gun Assault Rifle > --- INVENTORY -------- Light Treads Small Laser Grenade Launcher Mining Claw [Rating: 7] Favorites ----------- Power Light Ion Engine Engine Light Ion Engine Propulsion Light Treads Treads Light Treads Utility Huge Storage Unit Storage Huge Storage Unit Protection Light Armor Plating Weapon Assault Rifle Energy Gun EM Pulse Gun Ballistic Gun Assault Rifle Build | -11 -10 ------- Run | Yrd Mat Slots Evolved . | . . Power . | . . Propulsion . | . . Utility . | . . Weapon . | . . Parts Attached 10 | 7 3 Power 2 | 1 1 Engine 2 | 1 1 Core . | . . Reactor . | . . Propulsion 2 | 2 . Treads 2 | 2 . Leg . | . . Wheel . | . . Hover . | . . Flight . | . . Utility 3 | 1 2 Device . | . . Storage 2 | 1 1 Processor . | . . Hackware . | . . Protection 1 | . 1 Artifact . | . . Weapon 3 | 3 . Energy Gun 2 | 2 . Energy Cannon . | . . Ballistic Gun 1 | 1 . Ballistic Cannon . | . . Launcher . | . . Special Weapon . | . . Impact Weapon . | . . Slashing Weapon . | . . Piercing Weapon . | . . Special Melee Weapon . | . . Unidentified Prototypes . | . . Parts Lost 4 | . 4 Power 1 | . 1 Propulsion 1 | . 1 Utility 1 | . 1 Weapon 1 | . 1 Highest Loss Streak 1 | . 1 To Critical Strikes . | . . Average Backups 4 | . 4 Power . | . . Propulsion . | . . Utility . | . . Weapon 2 | . 2 Tool/Special . | . . Unused Backups 8 | 1 7 Power 2 | 1 1 Propulsion 2 | . 2 Utility . | . . Weapon 3 | . 3 Tool/Special 1 | . 1 Average Slot Usage (%) 92 | . 92 Engine 13 | . 13 Treads 27 | . 27 Storage 14 | . 14 Protection 7 | . 7 Energy Gun 13 | . 13 Ballistic Gun 14 | . 14 Peak Build Rating 7 | 6 7 Average Rating 6 | 4 6 On Entrance 3 | . 6 Avg Prop Armor Cover (%) . | . . Naked Turns . | . . Heaviest Build 90 | 12 90 Greatest Support 40 | 40 40 Greatest Overweight (x) 2 | . 2 Average Overweight (x) 1 | . 1 Largest Inventory Capacity 25 | 8 25 Average Capacity 22 | 6 23 Most Carried 6 | 2 6 Average Carried 4 | . 4 Final Capacity 25 | 8 25 Final Carried 5 | 1 5 Class Distribution -------------------- 100% | Mutant Dominant Class ---------------- Mutant | -10/Materials Resources | -11 -10 ----------- Run | Yrd Mat Matter Collected 420 | 226 194 Remotely . | . . Salvage Created 534 | . 534 Parts 39 | . 39 Haulers Intercepted 1 | . 1 Recyclers Shooed 2 | . 2 Parts Field Recycled . | . . Retrieved Matter . | . . Parts Self-Destructed . | . . Prevented . | . . Parts Restored . | . . Kills | -11 -10 ------- Run | Yrd Mat Combat Hostiles Destroyed 11 | . 11 Guns 10 | . 10 AOE 1 | . 1 Classes Destroyed 6 | . 6 Worker 4 | . 4 Hauler 1 | . 1 Recycler 3 | . 3 Operator 1 | . 1 Swarmer 9 | . 9 Grunt 2 | . 2 Best Kill Streak 7 | . 7 Combat Bots Only 5 | . 5 Max Kills in Single Turn 2 | . 2 Gunslinging . | . . Exploded 1 | . 1 Melee . | . . Uniques/NPCs Destroyed . | . . Combat | -11 -10 -------- Run | Yrd Mat Hostile Shots Fired 83 | . 83 Missed 15 | . 15 Hits 68 | . 68 Projectile 68 | . 68 Damage Taken 802 | . 802 Core 260 | . 260 Absorbed by Shields . | . . Core Remaining (%) 100 | 100 . Volleys Fired 46 | . 46 Largest 2 | . 2 Hottest 60 | . 60 Shots Fired 88 | . 88 Gun 88 | . 88 Cannon . | . . Launcher . | . . Special . | . . Kinetic 46 | . 46 Thermal 18 | . 18 Explosive . | . . Electromagnetic 24 | . 24 Robot Hit Streak 6 | . 6 Robot Miss Streak 3 | . 3 Penetration Max . | . . Secondary Targets . | . . Shots Hit Robots 52 | . 52 Core Hits 26 | . 26 Critical Kills . | . . Critical Parts Destroyed . | . . Critical Strikes 2 | . 2 Corrupt 2 | . 2 Melee Attacks . | . . Impact . | . . Slashing . | . . Piercing . | . . Sneak Attacks . | . . Combat Hostiles . | . . Follow-up Attacks . | . . Damage Inflicted 904 | . 904 Guns 702 | . 702 Cannons . | . . Explosions 202 | . 202 Melee . | . . Ramming . | . . Kinetic 397 | . 397 Thermal 306 | . 306 Explosive . | . . Electromagnetic 201 | . 201 Impact . | . . Slashing . | . . Piercing . | . . Highest Corruption . | . . Average Corruption . | . . Corruption Purged . | . . Corruption Blocked . | . . Overload Shots . | . . Overflow Damage . | . . Projectiles . | . . Explosions . | . . Melee . | . . Knockbacks . | . . Impact . | . . Kinetic . | . . Secondary . | . . Self-Inflicted Damage 204 | . 204 Shots 4 | . 4 Rammed . | . . Targets Rammed . | . . Kicked . | . . Crushed . | . . Highest Temperature 99 | . 99 Average Temperature 39 | . 39 Received Heat Transfer 102 | . 102 Siege Activations . | . . Martial Activations . | . . Shielding Activations . | . . Robots Disrupted . | . . Combat Hostiles . | . . Robots Corrupted . | . . Combat Hostiles . | . . Parts Fried . | . . Impact Corruptions . | . . Robots Melted . | . . Combat Hostiles . | . . Parts Melted . | . . Heat Transferred 525 | . 525 Parts Sabotaged . | . . Parts Stolen . | . . Parts Stripped . | . . Power Chain Reactions 2 | . 2 Alert | -11 -10 ------- Run | Yrd Mat Maximum Alert Level 1 | . 1 Low Security (%) 89 | 100 88 Level 1 10 | . 11 Level 2 . | . . Level 3 . | . . Level 4 . | . . Level 5 . | . . High Security . | . . Max Security . | . . Peak Influence 226 | . 226 Initial . | . . Average 73 | . 78 Influence Increases 433 | . 433 Destroy 0b10 Robot/C 220 | . 220 Destroy 0b10 Robot/NC 45 | . 45 Destroy Leader 42 | . 42 Successful Hack 6 | . 6 Disable Machine 45 | . 45 Destroy Structure 45 | . 45 Lose Combat Pursuer 30 | . 30 Influence Decreases 266 | . 266 Time Decay 226 | . 226 Lost Part 40 | . 40 Squads Dispatched 2 | . 2 Investigation . | . . Extermination . | . . Reinforcement 2 | . 2 Assault . | . . Garrison . | . . Intercept . | . . Searches Triggered . | . . Construction Impeded . | . . Haulers Reinforced . | . . Active Scanning Responses . | . . Cargo Convoy Interrupts . | . . Stealth | -11 -10 --------- Run | Yrd Mat Distress Signals 1 | . 1 Communications Jammed . | . . Distress Signals . | . . Times Spotted 22 | . 22 Peak Tracking Total 6 | . 6 Tactical Retreats 1 | . 1 Traps | -11 -10 ------- Run | Yrd Mat Traps Triggered . | . . Indirectly . | . . Trap Hack Attempts . | . . Triggered . | . . Disarmed . | . . Reprogrammed . | . . Reused . | . . Traps Extracted . | . . Installed . | . . Triggered . | . . Machines | -11 -10 ---------- Run | Yrd Mat Machines Disabled 3 | . 3 Max in Single Turn 2 | . 2 Machines Repaired . | . . Machines Dismantled . | . . Machines Sabotaged . | . . Overloaded Fab Kills . | . . Hacking | -11 -10 --------- Run | Yrd Mat Machines Accessed 1 | . 1 Terminals 1 | . 1 Fabricators . | . . Repair Stations . | . . Recycling Units . | . . Scanalyzers . | . . Garrison Access . | . . Total Hacks 1 | . 1 Successful 1 | . 1 Failed . | . . Catastrophic . | . . Database Lockouts . | . . Manual 1 | . 1 Terminals 1 | . 1 Fabricators . | . . Repair Stations . | . . Recycling Units . | . . Scanalyzers . | . . Garrison Access . | . . Terminal Hacks . | . . Fabricator Hacks . | . . Repair Station Hacks . | . . Recycling Unit Hacks . | . . Scanalyzer . | . . Garrison Access Hacks . | . . Unauthorized Hacks 1 | . 1 Terminals 1 | . 1 Operators 1 | . 1 Fabricators . | . . Repair Stations . | . . Recycling Units . | . . Scanalyzers . | . . Garrison Access . | . . Data Cores Recovered . | . . Used . | . . Hacking Detections 1 | . 1 Full Trace Events . | . . Feedback Events . | . . Feedback Blocked . | . . Robot Schematics Acquired . | . . Robots Built . | . . Authchips . | . . Time . | . . Total Robot Build Rating . | . . Part Schematics Acquired . | . . Parts Built . | . . Authchips . | . . Time . | . . Total Part Build Rating . | . . Part Studies Acquired . | . . Parts Repaired . | . . Time . | . . Parts Recycled . | . . Recycled Matter . | . . Retrieved Matter . | . . Retrieved Components . | . . Parts Scanalyzed . | . . Part Schematics Acquired . | . . Parts Damaged . | . . Bothacking | -11 -10 ------------ Run | Yrd Mat Used RIF Installer . | . . Robots Hacked . | . . Non-combat . | . . Combat . | . . Robot Hacks Applied . | . . Relay Couplers Released . | . . Fabnet Peak Effective % . | . . Robots Rewired . | . . Allies Hacked . | . . Hacks Repelled . | . . Allies | -11 -10 -------- Run | Yrd Mat Total Allies . | . . Largest Group . | . . Highest-Rated Group . | . . Highest-Rated Ally . | . . Total Orders . | . . Ally Attacks . | . . Total Damage . | . . Kills . | . . Allies Corrupted . | . . Allies Melted . | . . Intel | -11 -10 ------- Run | Yrd Mat Active Infowar (turns) . | . . Robot Analysis Total . | . . Derelict Logs Recovered . | . . Drone Launches . | . . Drone Recoveries . | . . Exploration | -11 -10 ------------- Run | Yrd Mat Turns Passed 1134 | 82 1052 Spaces Moved 356 | 45 311 Core 2 | 2 . Treads 354 | 43 311 Legs . | . . Wheels . | . . Hover . | . . Flight . | . . Fastest Speed 50 | 50 160 Average Speed 273 | 155 290 Slowest Speed 320 | 160 320 Overloaded Moves . | . . Propulsion Burnouts . | . . Robots Hopped . | . . Potential Cave-ins . | . . Cave-ins Triggered . | . . Exploration Rate (%) 34 | 3 66 Regions Visited 1 Branch Regions . Pre-discovered Areas . | . . Known Exits Taken . | . . Unknown Exits Taken 1 | 1 . Scrap Searched . | . . Spaces Dug . | . . Terrain Destroyed 46 | . 46 Melee . | . . Projectile . | . . AOE 46 | . 46 Terrain Rammed . | . . Walls Destroyed . | . . Machines Disabled . | . . Actions | -11 -10 --------- Run | Yrd Mat Total 427 | 55 372 Wait . | . . Move 355 | 44 311 Hop . | . . Pick Up 9 | 2 7 Fast Attach 9 | 6 3 Attach 2 | 1 1 Detach 2 | 1 1 Swap . | . . Drop 4 | 1 3 Fire 46 | . 46 Melee . | . . Ram . | . . Kick . | . . Crush . | . . Escape Stasis . | . . Rewire . | . . Trap . | . . Miscellaneous . | . . Route ------- -11/Scrapyard -10/Materials (discovered 2 exits: [*Mat] / [*Min]) History --------- Turn | Location | Event 23 | -11/Scrapyard | Discovered new exit (range 15) 83 | -11/Scrapyard | Entered Materials 317 | -10/Materials | Build established: Mutant 476 | -10/Materials | Discovered new exit (range 15) 733 | -10/Materials | Discovered new exit (range 14) 801 | -10/Materials | Core integrity fell below 50% 801 | -10/Materials | Core integrity fell below 20% 1135 | -10/Materials | Destroyed by G-34 Mercenary with Small Laser Last Messages --------------- 00949_ K-01 Serf collects debris. 00968_ Acquired 35 matter. 00985_ R-06 Scavenger collects Lgt. Ion Engine. 00988_ R-06 Scavenger collects Lgt. Assault Rifle. 00996_ R-06 Scavenger collects Lgt. Ion Engine. 01003_ Acquired 3 matter. 01039_ R-06 Scavenger collects Med. Matter Pod. 01053_ K-01 Serf collects debris. 01054_ Destroyed Hover Unit. 01054_ O-16 Technician destroyed. 01056_ K-01 Serf collects debris. 01060_ Acquired 3 matter. 01063_ K-01 Serf collects debris. 01095_ ALERT: Hostiles spotted, dispatching reinforcements to Terminal M006. 01099_ U-05 Engineer works on Matter Filter. 01127_ Lgt. Treads destroyed. 01131_ U-05 Engineer works on Matter Filter. Map ----- +----------------------------------------------------+ | | | ?????????????????????????????????????????????? | | ?????????????????????????????????????????????? | | ?????????????????????????????????????????????? | | ?????????????????????????????????????????????? | | ?????????????????????????????????????????????? | | ?????????????????????????????????????????????? | | ?????????????????????????????????????????????? | | ?????????????????????????????????????????????? | | ?????????????????????????????????????????????? | | ??????????????????????? ???????????????????? | | ????????????????????? ???????????????????? | | ??????????????????? ######?????????????? | | ??????????????????? ??????????????? | | ????????????????? ? ??? #?????????? | | ?????????????? """ #?????????? | | ????????????? "Y" "#????????? | | ????????????? T#????????? | | ???????????? "#????????? | | ???????????? ##????????? | | ???????????? < ?????????? | | ??????????? u<< ?????????? | | ??????????? <<< ?????????? | | ??????????o g ?? #?????????? | | ?????????? ???? #?????????? | | ?????????? @#????? #?????????? | | ?????????????????###### #????# #?????????? | | ????????????#####?????# #????# #?????????? | | #####???????# ?????# #????# #?????????? | | #???????# ?????# #????# #?????????? | | """ #???????# = #????# #????# #?????????? | | """ #???????# ###### #?? # #?????????? | | """ #???????#"" # # # #?????????? | | """ #???????#"Y # k/ + +?????????? | | #########"" + %# # #?????????? | | #""!"|""#? # ####+###### #?????????? | | # "!"|" #?#### ## = # #?????????? | | ##+## #####% % # % # #?????????? | | =%*= % ^# # #?????????? | | ^ < = +% !! # #?????????? | | ^ !! # !! # #?????????? | | ##/## ##### # /# #?????????? | | ????#########???##### # %+%%=#?????????? | | ????????????????????# # #% #?????????? | | ????????????????????# # # #?????????? | | ????????????????????# ###+###### #?????????? | | ????????????????????# #?# #????# #?????????? | | ????????????????????# #?# #????# #?????????? | | ????????????????????# #?# #????# #?????????? | | ????????????????????# #?# #????# +?????????? | +----------------------------------------------------+ Best States ------------- Heat Dissipation 25 Energy Generation 10 Energy Capacity 125 Matter Stores 300 Matter Capacity 300 Sight Range 16 Terrain Scan Density 10 Armor Coverage 150 Evasion (%) 40 Recoil Reduction 2 Item Schematics ----------------- None Robot Schematics ------------------ None Fabricated ------------ Nothing Repaired ---------- Nothing Studied --------- None Alien Tech Used ----------------- None Achievements -------------- None Challenges ------------ None Game ------ Seed AlloyCryofiberForcegen Manual? 0 Play Time 00:06:50 Cumulative 29.9 hours Start 2026.02.23 @ 16:39:45 End 2026.02.23 @ 16:43:25 Sessions 1 Manual Loads 0 Difficulty Rogue Special Mode None Game No. 82 Rogue 82 Adventurer 0 Explorer 0 Win Type - Total 0 Types 0/0/0/0/0/0/0/0/0/0 Lore% 18 Gallery% 26 Achievement% 22 Wizard Run 0 Options --------- Layout 1 ASCII 0 Keyboard 1 Movement Vi Keybinds 0 Fullscreen 1 Font 24/Smallcaps Map View 50x35 Zoom Use 0% Tactical HUD 1 Map Filters NONE Filters NONE Steam 1 RUN: 479b0def-82e5-45f0-9f9c-c044c5023c1b